Cogmind - Beta 14 @@@ ROGUE MODE // 2024.10.10 @ 03:13:22 Player: celerysam Result: Destroyed by Y-54 Guardian with Flak Gun Performance ------------- Evolutions (3) 1500 Regions Visited (6) 1200 Robots Destroyed (77) 385 Value Destroyed (2515) 2515 Prototype IDs (3) 60 Alien Tech Used (0) 0 Bonus (66) 66 TOTAL SCORE: 5726 Bonus ------- High Alert Combat Kills 66 Cogmind --------- Core Integrity 0/700 Matter 134/300 Energy 99/100 System Corruption 17% Temperature Cool (12) Movement Core (50) Location -7/Factory Parts ------- > --- POWER (2) -------- (None) > --- PROPULSION (4) --- (None) > --- UTILITY (5) ------ Core Analyzer > --- WEAPON (2) ------- Katana > --- INVENTORY (5) ---- Pulse Rifle Minigun Datajack Scythe Peak State ------------ > --- POWER ------------ Deuterium Engine Light Deuterium Engine > --- PROPULSION ------- Light Treads Airjet Airjet Cooled Airjet > --- UTILITY ---------- Improved Cooling System Large Storage Unit Advanced Visual Processing Unit Improved Signal Interpreter Improved Medium Armor Plating > --- WEAPON ----------- Beam Rifle Pulse Rifle > --- INVENTORY -------- Improved Heat Sink Improved Heat Sink Compact Battery Hardened Light Armor Plating Hardlight Generator Field Laser Enhanced Autogun Mini Grenade Launcher Datajack Katana Scythe [Rating: 41] Favorites ----------- Power Ion Engine Engine Ion Engine Power Core Light Nuclear Core Propulsion Light Treads Treads Light Treads Leg Aluminum Leg Wheel Armored Huge Wheel Hover Unit Airjet Flight Unit Surge Thruster Utility Signal Interpreter Device Structural Scanner Storage Large Storage Unit Processor Signal Interpreter Protection Light Armor Plating Weapon Pulse Rifle Energy Gun Pulse Rifle Ballistic Gun Heavy Assault Rifle Ballistic Cannon Advanced Assault Cannon Launcher Rocket Launcher Slashing Weapon Katana Special Melee Weapon Datajack Build | -11 -10 -9 -9 -8 -8 -7 ------- Run | Yrd Mat Mat Min Mat Sto Fac Slots Evolved 6 | . . 2 . 2 . 2 Power 1 | . . . . . . 1 Propulsion 2 | . . 1 . 1 . . Utility 3 | . . 1 . 1 . 1 Weapon . | . . . . . . . Parts Attached 102 | 7 7 7 5 37 11 28 Power 16 | 2 1 . 1 7 2 3 Engine 12 | 2 1 . 1 3 2 3 Core 4 | . . . . 4 . . Reactor . | . . . . . . . Propulsion 29 | 2 2 3 3 8 3 8 Treads 8 | . . 3 . . 3 2 Leg 11 | . 2 . 3 6 . . Wheel 5 | 2 . . . 2 . 1 Hover 4 | . . . . . . 4 Flight 1 | . . . . . . 1 Utility 17 | 1 1 2 . 5 1 7 Device 5 | . . 1 . 1 . 3 Storage 3 | 1 . . . 1 . 1 Processor 6 | . 1 1 . 2 1 1 Hackware . | . . . . . . . Protection 3 | . . . . 1 . 2 Artifact . | . . . . . . . Weapon 40 | 2 3 2 1 17 5 10 Energy Gun 16 | . 2 2 . 5 4 3 Energy Cannon . | . . . . . . . Ballistic Gun 7 | 2 1 . 1 . 1 2 Ballistic Cannon 6 | . . . . 6 . . Launcher 4 | . . . . 2 . 2 Special Weapon . | . . . . . . . Impact Weapon . | . . . . . . . Slashing Weapon 6 | . . . . 3 . 3 Piercing Weapon . | . . . . . . . Special Melee Weapon 1 | . . . . 1 . . Unidentified Prototypes 3 | . . . . 1 . 2 Parts Lost 42 | . 6 . 3 11 5 17 Power 8 | . 1 . . 4 1 2 Propulsion 14 | . 2 . 2 . 2 8 Utility 7 | . . . . 2 . 5 Weapon 13 | . 3 . 1 5 2 2 Highest Loss Streak 10 | . 6 . 3 2 4 10 To Critical Strikes . | . . . . . . . Average Slot Usage (%) 87 | . 93 95 98 89 82 67 Engine 7 | . 13 11 11 3 8 7 Core 1 | . . . . 5 . . Treads 12 | . . 21 30 . 11 15 Leg 9 | . 13 7 1 22 . . Wheel 3 | . 11 . . 6 8 . Device 4 | . . 11 11 2 . 2 Storage 9 | . 14 11 11 9 9 4 Processor 16 | . 13 11 11 20 27 13 Protection 2 | . . . . 3 . 4 Energy Gun 9 | . 7 20 11 7 7 6 Ballistic Gun 4 | . 19 1 9 . 5 3 Ballistic Cannon 2 | . . . . 5 4 . Slashing Weapon 1 | . . . . 3 . 1 Peak Build Rating 41 | 6 7 13 13 38 40 41 Average Rating 22 | 4 6 11 12 30 31 25 On Entrance 14 | . 6 7 13 11 38 26 Naked Turns 9 | . . . . . . 9 Heaviest Build 49 | 14 14 17 17 41 40 49 Greatest Support 82 | 26 26 60 60 72 62 82 Greatest Overweight (x) 6 | 1 4 . 1 1 1 6 Average Overweight (x) . | . . . . . . . Largest Inventory Capacity 15 | 8 8 8 8 15 15 15 Average Capacity 11 | 7 8 8 8 14 15 10 Most Carried 15 | 8 8 8 8 15 15 15 Average Carried 10 | 4 6 7 7 13 14 9 Final Capacity 15 | 8 8 8 8 15 15 5 Final Carried 15 | 6 7 8 8 15 15 4 Class Distribution -------------------- 78% | Mutant 21% | Scavenger-Mutant Dominant Class ---------------- Mutant | -10/Materials Mutant | -9/Materials Mutant | -9/Mines Mutant | -8/Materials Mutant | -8/Storage Mutant | -7/Factory Resources | -11 -10 -9 -9 -8 -8 -7 ----------- Run | Yrd Mat Mat Min Mat Sto Fac Matter Collected 1925 | 223 208 71 62 866 208 287 Remotely . | . . . . . . . Salvage Created 2541 | . 304 326 254 1033 216 408 Parts 158 | . 17 21 18 70 13 19 Haulers Intercepted 3 | . 1 . . 1 1 . Recyclers Shooed 2 | . . 1 1 . . . Parts Field Recycled . | . . . . . . . Retrieved Matter . | . . . . . . . Parts Self-Destructed . | . . . . . . . Prevented . | . . . . . . . Kills | -11 -10 -9 -9 -8 -8 -7 ------- Run | Yrd Mat Mat Min Mat Sto Fac Combat Hostiles Destroyed 63 | . 8 4 8 25 8 10 Melee 4 | . . . . 2 . 2 Guns 38 | . 8 4 8 7 4 7 Cannons 17 | . . . . 13 4 . AOE 3 | . . . . 3 . . Classes Destroyed 12 | . 3 4 1 2 1 1 Worker 2 | . . 1 . 1 . . Builder 3 | . . . . 3 . . Hauler 3 | . 1 . . 1 1 . Recycler 2 | . . 2 . . . . Operator 2 | . . . . 2 . . Watcher 2 | . . 2 . . . . Swarmer 11 | . 3 . 3 3 2 . Cutter 3 | . . . . . . 3 Grunt 35 | . 5 2 4 14 4 6 Duelist 2 | . . . 1 1 . . Sentry 11 | . . 2 . 7 1 1 Hunter 1 | . . . . . 1 . Best Kill Streak 5 | . 5 3 3 3 4 2 Combat Bots Only 5 | . 5 1 3 3 4 2 Max Kills in Single Turn 2 | . 1 1 1 2 1 1 Gunslinging . | . . . . . . . Exploded 2 | . . . . 2 . . Melee 1 | . . . . 1 . 1 Uniques/NPCs Destroyed . | . . . . . . . Combat | -11 -10 -9 -9 -8 -8 -7 -------- Run | Yrd Mat Mat Min Mat Sto Fac Hostile Shots Fired 665 | . 76 49 52 182 93 213 Missed 182 | . 11 12 15 37 28 79 Damage Taken 7218 | . 637 495 528 2150 970 2438 Core 1544 | . 132 109 121 285 197 700 Absorbed by Shields . | . . . . . . . Core Remaining (%) 50 | 100 47 . 42 . 12 . Volleys Fired 251 | . 36 21 22 100 29 43 Largest 2 | . 2 2 2 2 2 2 Hottest 128 | . 60 128 86 110 128 119 Shots Fired 414 | . 66 41 41 148 58 60 Gun 292 | . 66 41 41 61 24 59 Cannon 110 | . . . . 76 34 . Launcher 12 | . . . . 11 . 1 Special . | . . . . . . . Kinetic 198 | . 47 1 19 76 42 13 Thermal 166 | . 13 40 22 29 16 46 Explosive 12 | . . . . 11 . 1 Electromagnetic 38 | . 6 . . 32 . . Robot Hit Streak 17 | . 9 17 10 8 10 11 Robot Miss Streak 6 | . 4 6 1 5 6 5 Penetration Max . | . . . . . . . Secondary Targets 6 | . . 1 3 . 1 1 Max Gunslinging Chain 1 | . . 1 1 . 1 1 Shots Hit Robots 276 | . 39 33 27 97 32 48 Core Hits 131 | . 15 19 10 49 19 19 Critical Kills . | . . . . . . . Critical Parts Destroyed . | . . . . . . . Critical Strikes 11 | . . . 1 6 2 2 Burn 3 | . . . 1 1 1 . Blast 4 | . . . . 3 1 . Sever 4 | . . . . 2 . 2 Melee Attacks 37 | . . . . 14 . 23 Impact . | . . . . . . . Slashing 36 | . . . . 13 . 23 Piercing . | . . . . . . . Sneak Attacks 3 | . . . . 3 . . Combat Hostiles . | . . . . . . . Follow-up Attacks . | . . . . . . . Damage Inflicted 6109 | . 463 502 430 2680 863 1171 Guns 3054 | . 463 502 430 737 322 600 Cannons 1715 | . . . . 1174 541 . Explosions 505 | . . . . 385 . 120 Melee 794 | . . . . 367 . 427 Ramming 41 | . . . . 17 . 24 Kinetic 2460 | . 347 10 193 1174 619 117 Thermal 1846 | . 66 492 237 324 244 483 Explosive 505 | . . . . 385 . 120 Electromagnetic 463 | . 50 . . 413 . . Impact . | . . . . . . . Slashing 794 | . . . . 367 . 427 Piercing . | . . . . . . . Highest Corruption 17 | . . . . . . 17 Average Corruption 9 | . . . . . . 9 Corruption Purged . | . . . . . . . Corruption Blocked . | . . . . . . . Effects 19 | . . . . . . 19 Message Errors 5 | . . . . . . 5 Matter Fused 4 | . . . . . . 4 Heat Flow Errors 4 | . . . . . . 4 Energy Discharges 1 | . . . . . . 1 Data Loss (minor) 3 | . . . . . . 3 Weapon Failures 2 | . . . . . . 2 Overload Shots . | . . . . . . . Overflow Damage 48 | . . . . 48 . . Projectiles 24 | . . . . 24 . . Explosions . | . . . . . . . Melee 24 | . . . . 24 . . Knockbacks 18 | . . . . 10 8 . Impact . | . . . . . . . Kinetic 17 | . . . . 9 8 . Secondary 1 | . . . . 1 . . Self-Inflicted Damage 119 | . . . . 60 . 59 Shots 3 | . . . . 2 . 1 Rammed 6 | . . . . 1 . 5 Targets Rammed 7 | . . . . 2 . 5 Kicked 1 | . . . . 1 . . Crushed . | . . . . . . . Highest Temperature 489 | . 20 400 147 263 248 489 Average Temperature 110 | . 11 103 42 80 90 241 Received Heat Transfer 2790 | . 207 249 186 1035 423 690 Effects 25 | . . 3 . 3 . 19 Shutdowns 6 | . . . . . . 6 Energy Bleed 5 | . . . . . . 5 Interference 12 | . . 3 . 3 . 6 Matter Decay 1 | . . . . . . 1 Short Circuit 1 | . . . . . . 1 Siege Activations . | . . . . . . . Robots Corrupted 1 | . . . . . . 1 Combat Hostiles 1 | . . . . . . 1 Parts Fried 5 | . . . . 4 . 1 Impact Corruptions 1 | . . . . . . 1 Robots Melted . | . . . . . . . Combat Hostiles . | . . . . . . . Parts Melted 2 | . . . . . . 2 Heat Transferred 4226 | . 150 1009 592 814 551 1110 Parts Sabotaged . | . . . . . . . Parts Stolen . | . . . . . . . Parts Stripped . | . . . . . . . Power Chain Reactions . | . . . . . . . Alert | -11 -10 -9 -9 -8 -8 -7 ------- Run | Yrd Mat Mat Min Mat Sto Fac Peak Influence 572 | . 157 270 179 572 258 139 Initial 194 | . . 66 105 . 194 39 Average 137 | . 99 146 98 218 175 48 Maximum Alert Level 2 | . . 1 . 2 1 . Low Security (%) 78 | 100 100 73 100 50 64 100 Level 1 15 | . . 26 . 29 35 . Level 2 6 | . . . . 19 . . Level 3 . | . . . . . . . Level 4 . | . . . . . . . Level 5 . | . . . . . . . High Security . | . . . . . . . Max Security . | . . . . . . . Squads Dispatched 12 | . 1 . . 8 . 3 Investigation 2 | . 1 . . 1 . . Extermination 1 | . . . . . . 1 Reinforcement 4 | . . . . 2 . 2 Assault . | . . . . . . . Garrison 5 | . . . . 5 . . Intercept . | . . . . . . . Searches Triggered . | . . . . . . . Construction Impeded 1 | . . . . 1 . . Haulers Reinforced 1 | . . . . . . 1 Active Scanning Responses . | . . . . . . . Cargo Convoy Interrupts . | . . . . . . . Stealth | -11 -10 -9 -9 -8 -8 -7 --------- Run | Yrd Mat Mat Min Mat Sto Fac Distress Signals 6 | . . 2 . 3 1 . Communications Jammed . | . . . . . . . Distress Signals . | . . . . . . . Times Spotted 101 | . 9 14 10 38 13 17 Peak Tracking Total 7 | . 6 7 4 5 4 5 Tactical Retreats 7 | . . 1 1 2 1 2 Traps | -11 -10 -9 -9 -8 -8 -7 ------- Run | Yrd Mat Mat Min Mat Sto Fac Traps Triggered 11 | . 1 . . 1 4 5 Indirectly . | . . . . . . . Trap Hack Attempts . | . . . . . . . Triggered . | . . . . . . . Disarmed . | . . . . . . . Reprogrammed . | . . . . . . . Reused . | . . . . . . . Traps Extracted . | . . . . . . . Installed . | . . . . . . . Triggered . | . . . . . . . Machines | -11 -10 -9 -9 -8 -8 -7 ---------- Run | Yrd Mat Mat Min Mat Sto Fac Machines Disabled 6 | . 1 . . 4 1 . Max in Single Turn 1 | . 1 . . 1 1 . Machines Repaired . | . . . . . . . Machines Dismantled . | . . . . . . . Machines Sabotaged . | . . . . . . . Overloaded Fab Kills . | . . . . . . . Hacking | -11 -10 -9 -9 -8 -8 -7 --------- Run | Yrd Mat Mat Min Mat Sto Fac Machines Accessed 12 | . 1 . 1 2 4 4 Terminals 11 | . 1 . 1 2 4 3 Fabricators . | . . . . . . . Repair Stations . | . . . . . . . Recycling Units 1 | . . . . . . 1 Scanalyzers . | . . . . . . . Garrison Access . | . . . . . . . Total Hacks 19 | . 1 . 3 5 5 5 Successful 8 | . 1 . 1 . 4 2 Failed 11 | . . . 2 5 1 3 Catastrophic 3 | . . . . 2 . 1 Database Lockouts . | . . . . . . . Manual 12 | . 1 . . 5 3 3 Terminals 18 | . 1 . 3 5 5 4 Fabricators . | . . . . . . . Repair Stations . | . . . . . . . Recycling Units 1 | . . . . . . 1 Scanalyzers . | . . . . . . . Garrison Access . | . . . . . . . Terminal Hacks 5 | . . . 1 . 3 1 Open Door 1 | . . . . . 1 . Alert Level 1 | . . . . . 1 . Unreport Threat 2 | . . . . . 1 1 Zone Layout 1 | . . . 1 . . . Fabricator Hacks . | . . . . . . . Repair Station Hacks . | . . . . . . . Recycling Unit Hacks . | . . . . . . . Scanalyzer . | . . . . . . . Garrison Access Hacks . | . . . . . . . Unauthorized Hacks 3 | . 1 . . . 1 1 Terminals 3 | . 1 . . . 1 1 Botnet 3 | . 1 . . . 1 1 Fabricators . | . . . . . . . Repair Stations . | . . . . . . . Recycling Units . | . . . . . . . Scanalyzers . | . . . . . . . Garrison Access . | . . . . . . . Data Cores Recovered 2 | . . . . 2 . . Used . | . . . . . . . Hacking Detections 8 | . 1 . . 2 2 3 Full Trace Events 1 | . . . . 1 . . Feedback Events . | . . . . . . . Feedback Blocked . | . . . . . . . Robot Schematics Acquired . | . . . . . . . Robots Built . | . . . . . . . Authchips . | . . . . . . . Time . | . . . . . . . Total Robot Build Rating . | . . . . . . . Part Schematics Acquired . | . . . . . . . Parts Built . | . . . . . . . Authchips . | . . . . . . . Time . | . . . . . . . Total Part Build Rating . | . . . . . . . Parts Repaired . | . . . . . . . Time . | . . . . . . . Parts Recycled . | . . . . . . . Recycled Matter . | . . . . . . . Retrieved Matter . | . . . . . . . Retrieved Components . | . . . . . . . Parts Scanalyzed . | . . . . . . . Part Schematics Acquired . | . . . . . . . Parts Damaged . | . . . . . . . Bothacking | -11 -10 -9 -9 -8 -8 -7 ------------ Run | Yrd Mat Mat Min Mat Sto Fac Used RIF Installer . | . . . . . . . Robots Hacked 1 | . . . . 1 . . Non-combat . | . . . . . . . Combat 1 | . . . . 1 . . Robot Hacks Applied 1 | . . . . 1 . . parse_system 1 | . . . . 1 . . Relay Couplers Released . | . . . . . . . Fabnet Peak Effective % . | . . . . . . . Robots Rewired . | . . . . . . . Allies Hacked . | . . . . . . . Hacks Repelled . | . . . . . . . Allies | -11 -10 -9 -9 -8 -8 -7 -------- Run | Yrd Mat Mat Min Mat Sto Fac Total Allies 1 | . . . 1 . . . Largest Group 1 | . . . 1 . . . Highest-Rated Group 31 | . . . 31 . . . Highest-Rated Ally 31 | . . . 31 . . . Total Orders . | . . . . . . . Ally Attacks 3 | . . . 3 . . . Total Damage 42 | . . . 42 . . . Kills . | . . . . . . . Allies Corrupted . | . . . . . . . Allies Melted . | . . . . . . . Intel | -11 -10 -9 -9 -8 -8 -7 ------- Run | Yrd Mat Mat Min Mat Sto Fac Robot Analysis Total . | . . . . . . . Derelict Logs Recovered 1 | . . . 1 . . . Drone Launches . | . . . . . . . Drone Recoveries . | . . . . . . . Exploration | -11 -10 -9 -9 -8 -8 -7 ------------- Run | Yrd Mat Mat Min Mat Sto Fac Turns Passed 4219 | 75 326 367 821 1361 425 844 Spaces Moved 2823 | 63 202 203 475 847 263 770 Core 27 | 6 1 . . . . 20 Treads 818 | . . 111 441 . 59 207 Legs 729 | . 95 92 34 508 . . Wheels 711 | 57 106 . . 339 204 5 Hover 112 | . . . . . . 112 Flight 426 | . . . . . . 426 Fastest Speed 35 | 50 90 120 120 100 100 35 Average Speed 112 | 89 104 141 157 114 120 77 Slowest Speed 350 | 100 250 160 190 190 155 350 Overloaded Moves . | . . . . . . . Propulsion Burnouts . | . . . . . . . Robots Hopped 4 | . . . . . . 4 Cave-ins Triggered 2 | . . . . . . 2 Exploration Rate (%) 39 | 4 36 24 83 65 49 17 Regions Visited 6 Branch Regions 2 Pre-discovered Areas . | . . . . . . . Known Exits Taken 4 | . 1 . 1 1 1 . Unknown Exits Taken 2 | 1 . 1 . . . . Scrap Searched 1 | . . . 1 . . . Spaces Dug 1 | . . . . . . 1 Terrain Destroyed 118 | . . . . 97 8 13 Melee 1 | . . . . . . 1 Projectile 27 | . . . . 19 8 . AOE 90 | . . . . 78 . 12 Terrain Rammed . | . . . . . . . Walls Destroyed . | . . . . . . . Machines Disabled . | . . . . . . . Actions | -11 -10 -9 -9 -8 -8 -7 --------- Run | Yrd Mat Mat Min Mat Sto Fac Total 3397 | 81 252 243 508 1077 314 922 Wait 36 | . . . . 25 5 6 Move 2809 | 62 201 202 474 846 262 762 Hop 4 | . . . . . . 4 Pick Up 68 | 12 8 7 3 27 5 6 Fast Attach 23 | . . 1 2 7 5 8 Attach 39 | 6 7 1 . 12 4 9 Detach 3 | . . . . 1 . 2 Swap 40 | 1 . 5 3 18 2 11 Drop 44 | . . 6 4 25 2 7 Fire 251 | . 36 21 22 100 29 43 Melee 37 | . . . . 14 . 23 Ram 6 | . . . . 1 . 5 Kick 1 | . . . . 1 . . Crush . | . . . . . . . Escape Stasis 36 | . . . . . . 36 Rewire . | . . . . . . . Trap . | . . . . . . . Miscellaneous . | . . . . . . . Route ------- -11/Scrapyard -10/Materials -9/Materials -9/Mines (discovered 2 exits: *Mat x2) -8/Materials (discovered 3 exits: *Fac x2 / *Sto) -8/Storage -7/Factory History --------- Turn | Location | Event 37 | -11/Scrapyard | Discovered new exit (range 15) 76 | -11/Scrapyard | Entered Materials 249 | -10/Materials | Core integrity fell below 50% 275 | -10/Materials | Lost 6 parts (1p2n3w) 280 | -10/Materials | Discovered new exit (range 3) 306 | -10/Materials | Build established: Mutant 401 | -10/Materials | Identified exit to Materials 402 | -10/Materials | Entered another Materials area 402 | -9/Materials | Evolved 2 slots: Propulsion x1, Utility x1 761 | -9/Materials | Discovered new exit (range 6) 769 | -9/Materials | Entered Mines 772 | -9/Mines | Received a Mining Laser from a helpful Derelict 851 | -9/Mines | Met a Derelict bent on vengeance 1117 | -9/Mines | Identified exit to Materials 1463 | -9/Mines | Discovered exit to Materials (range 13) 1514 | -9/Mines | Core integrity fell below 50% 1563 | -9/Mines | Lost 3 parts (2n1w) 1590 | -9/Mines | Entered Materials 1590 | -8/Materials | Evolved 2 slots: Propulsion x1, Utility x1 1635 | -8/Materials | Garrison activated, responded to threat 1684 | -8/Materials | Met 7R-MNS 1862 | -8/Materials | Build established: Scavenger-Mutant 2050 | -8/Materials | Garrison activated, responded to threat 2106 | -8/Materials | Discovered new exit (range 4) 2113 | -8/Materials | Identified exit to Factory 2389 | -8/Materials | Build established: Mutant 2403 | -8/Materials | Discovered new exit (range 3) 2406 | -8/Materials | Identified exit to Storage 2573 | -8/Materials | Garrison activated, responded to threat 2760 | -8/Materials | Core integrity fell below 50% 2808 | -8/Materials | Discovered exit to Factory (range 4) 2951 | -8/Materials | Entered Storage 3073 | -8/Storage | Core integrity fell below 20% 3093 | -8/Storage | Lost 4 parts (1p1n2w) 3353 | -8/Storage | Discovered exit to Factory (range 16) 3376 | -8/Storage | Entered Factory 3376 | -7/Factory | Evolved 2 slots: Power x1, Utility x1 3933 | -7/Factory | Crushed by falling debris 3933 | -7/Factory | System corruption reached 10% 3976 | -7/Factory | Crushed by falling debris 3982 | -7/Factory | Core integrity fell below 50% 4007 | -7/Factory | Lost 10 parts (1p3n4u2w) 4213 | -7/Factory | Core integrity fell below 20% 4220 | -7/Factory | Destroyed by Y-54 Guardian with Flak Gun Last Messages --------------- 04131_ Connecting with Terminal... 04134_ System corrupted: Matter fused (-7). 04142_ K-01 Serf cleans the Nuclear Reactor. 04147_ K-01 Serf cleans the Matter Pump. 04151_ Acquired Reaction Control System. 04157_ K-01 Serf cleans the Matter Pump. 04159_ L0SHJY Map ----- +----------------------------------------------------+ | + / #??????????????????????????? | | "" """ # ##########??????????????????????????? | | "" """ # #???????????????????????????????????? | | "" """ # #???????????????????????????????????? | | # #???????????????????????????????????? | | ######## #???????????????????????????????????? | | ???????# #???????????????????????????????????? | | ####???# #???????????????????????????????????? | | ??# #???????????????????????????????????? | | """ ??# #???????????????????????????????????? | | """ ?# ^ ^ #???????????????????????????????????? | | """ ?# #???????????????????????????????????? | | # #???????????????????????????????????? | | """ # #???????????????????#???????????????? | | """ + #?????????????????? #???????????????? | | """ # #????????????????? #???????????????? | | # ###??????????????? #???????????????? | | ######## #"#?????????????? #???????????????? | | ??????# #??????????????# ##??????????????? | | ??????# ############+## #??????????????? | | ??????# *% #####??????????? | | ??????# = ???????? | | ??????# #??????????????? | | ??????# ############+## #??????????????? | | ??????# #???????# [k! #????##??????????????? | | ??????## ######???????# !@= #????????????????????? | | ???????# #????????????# pY #????????????????????? | | ???????# #????????????#! #????????????????????? | | ######## #????????????# #????????????????????? | | ## ############## #????????????????????? | | ^ ## """#????????????????????? | | ## """#????????????????????? | | "" """ """ """ !/ ## """#????????????????????? | | "" """ """ """ !/ ## ""#????????????????????? | | "" """ """ """ ## ""#????????????????????? | | !!!## #????????????????????? | | !!!########????????????????????? | | !! #???????????????????????????? | | #???????????????????????????? | | #########???????????????????? | | ########## #???????????????? | | ?????????# #######?????????????????????? | | ?????????# #???????????????????????????? | | ?????????######## ##???????????????????????????? | | ????????????????# #????????????????????????????? | | ????????????????# #????????????????????????????? | | ????????????????# #????????????????????????????? | | ????????????????# #????????????????????????????? | | ????????????????# #????????????????????????????? | | ????????????????# #????????????????????????????? | +----------------------------------------------------+ Best States ------------- Heat Dissipation 61 Energy Generation 23 Energy Capacity 515 Matter Stores 300 Matter Capacity 300 Sight Range 20 Terrain Scan Density 10 Armor Coverage 225 Evasion (%) 71 Core Analysis 6 Recoil Reduction 4 Item Schematics ----------------- None Robot Schematics ------------------ None Fabricated ------------ Nothing Alien Tech Used ----------------- None Achievements -------------- None Challenges ------------ None Game ------ Seed CentriumRiotProjector Manual? 0 Play Time 00:50:51 Cumulative 176.5 hours Start 2024.10.10 @ 02:19:05 End 2024.10.10 @ 03:13:22 Sessions 1 Manual Loads 0 Difficulty Rogue Special Mode None Game No. 239 Rogue 239 Adventurer 0 Explorer 0 Win Type - Total 0 Types 0/0/0/0/0/0/0/0/0 Lore% 32 Gallery% 62 Achievement% 41 Wizard Run 0 Options --------- Layout 0 ASCII 0 Keyboard 0 Movement Mouse Keybinds 0 Fullscreen 1 Font 24/Smallcaps Map View 76x50 Zoom Use 0% Tactical HUD 1 Map Filters NONE Filters NONE Steam 1 RUN: 1a319f92-0db1-4ee0-8ca9-f1b3a2e0b462